Workbook

Sheet Start
B1: DESPRE ACEST ȘABLON
B2: Utilizați acest șablon pentru a crea un Buget marketing canal.
B3: Introduceți Vânzările anticipate pentru fiecare lună și alte detalii în tabele.
B4: Totalurile sunt calculate automat și diagramele sparkline sunt actualizate.
B5: Notă:
B6: Instrucțiuni suplimentare sunt furnizate în coloana A din foaia de lucru BUGET MARKETING CANAL Acest text a fost ascuns intenționat. Pentru a elimina textul, selectați coloana A, apoi DELETE. Pentru a reafișa textul, selectați coloana A, apoi schimbați culoarea de font.
B7: Pentru a afla mai multe despre tabele, apăsați SHIFT, apoi F10 într-un tabel, selectați opțiunea TABEL, apoi selectați TEXT ALTERNATIV.

Sheet Buget marketing canal
C2: Tarif | D2: Luna 1 | E2: Luna 2 | F2: Luna 3 | G2: Luna 4 | H2: Luna 5 | I2: Luna 6 | J2: Luna 7 | K2: Luna 8 | L2: Luna 9 | M2: Luna 10 | N2: Luna 11 | O2: Luna 12 | Q2: Total
B3: TOTAL VÂNZĂRI ANTICIPATE (000) lei | D3: 750 | E3: 200 | F3: 500 | G3: 1,500 | H3: 1,200 | I3: 1,500 | J3: 1,500 | K3: 1,800 | L3: 2,000 | M3: 2,000 | N3: 2,000 | O3: 2,000 | Q3: =SUM(D3:O3) -> 16,950
A4: Introduceți detaliile în tabelul Personal începând cu celula de la dreapta. Totalul pentru Personal pentru fiecare lună este calculat automat la sfârșitul tabelului, iar Totalul anual în celula Q9. Diagrama sparkline este actualizată în celula S9. Următoarea instrucțiune se află în celula A10. | B4: Total personal | C4: Tarif | D4: Luna 1 | E4: Luna 2 | F4: Luna 3 | G4: Luna 4 | H4: Luna 5 | I4: Luna 6 | J4: Luna 7 | K4: Luna 8 | L4: Luna 9 | M4: Luna 10 | N4: Luna 11 | O4: Luna 12
B5: PERSONAL (PROCENT DIN TOTALUL VÂNZĂRILOR) | D5: =D11+D36+D44+D51 -> 110% | E5: 110% | F5: =F11+F36+F44+F51 -> 110% | G5: 110% | H5: 110% | I5: 110% | J5: 110% | K5: 110% | L5: 85% | M5: 85% | N5: 85% | O5: 85%
B6: Resurse umane - numărul de angajați | C6: 5 | D6: =+$C$6 -> 5 | E6: 5 | F6: 5 | G6: 5 | H6: 5 | I6: 5 | J6: 5 | K6: 5 | L6: 5 | M6: 5 | N6: 5 | O6: 5
B7: Resurse umane - costuri | D7: =$C$6*D6 -> 25.00 | E7: 25.00 | F7: 25.00 | G7: 25.00 | H7: 25.00 | I7: 25.00 | J7: 25.00 | K7: 25.00 | L7: 25.00 | M7: 25.00 | N7: 25.00 | O7: 25.00 | Q7: =SUM('Buget marketing canal'!$D7:$O7) -> 300.00
B8: Comision | C8: 0.10% | D8: =D3*$C$8 -> 0.75 | E8: 0.20 | F8: 0.50 | G8: 1.50 | H8: 1.20 | I8: 1.50 | J8: 1.50 | K8: 1.80 | L8: 2.00 | M8: 2.00 | N8: 2.00 | O8: 2.00 | Q8: =SUM('Buget marketing canal'!$D8:$O8) -> 16.95
B9: Total personal (000) lei | D9: =SUM(D7:D8) -> 25.75 | E9: =SUM(E7:E8) -> 25.20 | F9: 25.50 | G9: 26.50 | H9: 26.20 | I9: 26.50 | J9: 26.50 | K9: 26.80 | L9: 27.00 | M9: 27.00 | N9: 27.00 | O9: 27.00 | Q9: =SUM(Q7:Q8) -> 316.95
B10: ELEMENTE DE MARKETING DIRECT | C10: Tarif | D10: Luna 1 | E10: Luna 2 | F10: Luna 3 | G10: Luna 4 | H10: Luna 5 | I10: Luna 6 | J10: Luna 7 | K10: Luna 8 | L10: Luna 9 | M10: Luna 10 | N10: Luna 11 | O10: Luna 12
B11: MARKETING DIRECT (PROCENT DIN TOTALUL VÂNZĂRILOR) | D11: 100% | E11: 100% | F11: 75% | G11: 40% | H11: 33% | I11: 25% | J11: 20% | K11: 10% | L11: 5% | M11: 5% | N11: 5% | O11: 5%
B12: Telemarketing (procent din vânzările directe) | D12: 100% | E12: 50% | F12: 50% | G12: 50% | H12: 50% | I12: 50% | J12: 50% | K12: 50% | L12: 50% | M12: 50% | N12: 50% | O12: 50%
B13: Resurse umane - numărul de angajați | C13: 3 | D13: =$C$13*D12 -> 3 | E13: 1.5 | F13: 1.5 | G13: 1.5 | H13: 1.5 | I13: 1.5 | J13: 1.5 | K13: 1.5 | L13: 1.5 | M13: 1.5 | N13: 1.5 | O13: 1.5 | Q13: =SUM('Buget marketing canal'!$D13:$O13) -> 19.50
B14: Suport infrastructură | D14: 25 | E14: 10 | F14: 25 | G14: 10 | H14: 25 | I14: 10 | J14: 25 | K14: 10 | L14: 25 | M14: 10 | N14: 25 | O14: 10 | Q14: =SUM('Buget marketing canal'!$D14:$O14) -> 210.00
B15: Comision | C15: 0.10% | D15: =$C$15*D3*D11*D12 -> 0.75 | E15: 0.10 | F15: 0.19 | G15: 0.30 | H15: 0.20 | I15: 0.19 | J15: 0.15 | K15: 0.09 | L15: 0.05 | M15: 0.05 | N15: 0.05 | O15: 0.05 | Q15: =SUM('Buget marketing canal'!$D15:$O15) -> 2.16
B16: Instruire | D16: 25 | E16: 10 | F16: 25 | G16: 10 | H16: 25 | I16: 10 | J16: 25 | K16: 10 | L16: 25 | M16: 10 | N16: 25 | O16: 10 | Q16: =SUM('Buget marketing canal'!$D16:$O16) -> 210.00
B17: Total telemarketing (000) lei | D17: =SUM(D13:D16) -> 53.75 | E17: =SUM(E13:E16) -> 21.60 | F17: =SUM(F13:F16) -> 51.69 | G17: 21.80 | H17: 51.70 | I17: 21.69 | J17: 51.65 | K17: 21.59 | L17: 51.55 | M17: 21.55 | N17: 51.55 | O17: 21.55 | Q17: =SUM(Q13:Q16) -> 441.66
B18: ELEMENTE MARKETING PE INTERNET | C18: Tarif | D18: Luna 1 | E18: Luna 2 | F18: Luna 3 | G18: Luna 4 | H18: Luna 5 | I18: Luna 6 | J18: Luna 7 | K18: Luna 8 | L18: Luna 9 | M18: Luna 10 | N18: Luna 11 | O18: Luna 12
B19: MARKETING PE INTERNET (PROCENT DIN VÂNZĂRILE DIRECTE) | D19: 25% | E19: 25% | F19: 25% | G19: 25% | H19: 25% | I19: 25% | J19: 25% | K19: 25% | L19: 25% | M19: 25% | N19: 25% | O19: 25%
B20: Resurse umane - Număr de angajați | C20: 1 | D20: =$C$20*D19 -> 0.25 | E20: 0.25 | F20: 0.25 | G20: 0.25 | H20: 0.25 | I20: 0.25 | J20: 0.25 | K20: 0.25 | L20: 0.25 | M20: 0.25 | N20: 0.25 | O20: 0.25 | Q20: =SUM('Buget marketing canal'!$D20:$O20) -> 3.00
B21: Dezvoltare site web (cost unic) | D21: 500 | Q21: =SUM('Buget marketing canal'!$D21:$O21) -> 500.00
B22: Găzduire | D22: 10 | E22: 10 | F22: 10 | G22: 10 | H22: 10 | I22: 10 | J22: 10 | K22: 10 | L22: 10 | M22: 10 | N22: 10 | O22: 10 | Q22: =SUM('Buget marketing canal'!$D22:$O22) -> 120.00
B23: Asistență și întreținere | D23: 25 | N23: 25 | Q23: =SUM('Buget marketing canal'!$D23:$O23) -> 50.00
B24: Facebook | E24: 100 | G24: 100 | I24: 100 | K24: 100 | M24: 100 | O24: 100 | Q24: =SUM('Buget marketing canal'!$D24:$O24) -> 600.00
B25: Twitter | D25: 100 | F25: 100 | H25: 100 | J25: 100 | L25: 100 | N25: 100 | Q25: =SUM('Buget marketing canal'!$D25:$O25) -> 600.00
B26: YouTube | E26: 100 | G26: 100 | H26: 100 | L26: 100 | M26: 100 | O26: 100 | Q26: =SUM('Buget marketing canal'!$D26:$O26) -> 600.00
B27: Total Marketing pe internet (000) lei | D27: =SUM(D20:D23) -> 535.25 | E27: 10.25 | F27: 10.25 | G27: 10.25 | H27: 10.25 | I27: 10.25 | J27: 10.25 | K27: 10.25 | L27: 10.25 | M27: 10.25 | N27: 35.25 | O27: 10.25 | Q27: =SUM(Q20:Q23) -> 673.00
B28: ELEMENTE DE CORESPONDENȚĂ DIRECTĂ | C28: Tarif | D28: Luna 1 | E28: Luna 2 | F28: Luna 3 | G28: Luna 4 | H28: Luna 5 | I28: Luna 6 | J28: Luna 7 | K28: Luna 8 | L28: Luna 9 | M28: Luna 10 | N28: Luna 11 | O28: Luna 12
B29: CORESPONDENȚĂ DIRECTĂ (PROCENT DIN VÂNZĂRILE DIRECTE)
B30: Resurse umane - Cost | Q30: =SUM('Buget marketing canal'!$D30:$O30) -> 0.00
B31: Material | D31: 1000 | E31: 1000 | F31: 1000 | G31: 1000 | H31: 1000 | I31: 1000 | J31: 1000 | K31: 1000 | L31: 1000 | M31: 1000 | N31: 1000 | O31: 1000 | Q31: =SUM('Buget marketing canal'!$D31:$O31) -> 12,000.00
B32: Cheltuieli cu poșta | D32: 250 | E32: 250 | F32: 250 | G32: 250 | H32: 250 | I32: 250 | J32: 250 | K32: 250 | L32: 250 | M32: 250 | N32: 250 | O32: 250 | Q32: =SUM('Buget marketing canal'!$D32:$O32) -> 3,000.00
B33: Total corespondență directă (000) lei | D33: =SUM(D30:D32) -> 1,250.00 | E33: =SUM(E30:E32) -> 1,250.00 | F33: 1,250.00 | G33: 1,250.00 | H33: 1,250.00 | I33: 1,250.00 | J33: 1,250.00 | K33: 1,250.00 | L33: 1,250.00 | M33: 1,250.00 | N33: 1,250.00 | O33: 1,250.00 | Q33: =SUM(Q30:Q32) -> 15,000.00
B34: Total Marketing direct (000) lei | D34: =SUM(CorespondențăDirectă[[#Totals],[Luna 1]],MarketingPeInternet[[#Totals],[Luna 1]],MarketingDirect[[#Totals],[Luna 1]]) -> 1,839.00 | E34: =SUM(CorespondențăDirectă[[#Totals],[Luna 2]],MarketingPeInternet[[#Totals],[Luna 2]],MarketingDirect[[#Totals],[Luna 2]]) -> 1,281.85 | F34: =SUM(CorespondențăDirectă[[#Totals],[Luna 3]],MarketingPeInternet[[#Totals],[Luna 3]],MarketingDirect[[#Totals],[Luna 3]]) -> 1,311.94 | G34: =SUM(CorespondențăDirectă[[#Totals],[Luna 4]],MarketingPeInternet[[#Totals],[Luna 4]],MarketingDirect[[#Totals],[Luna 4]]) -> 1,282.05 | H34: =SUM(CorespondențăDirectă[[#Totals],[Luna 5]],MarketingPeInternet[[#Totals],[Luna 5]],MarketingDirect[[#Totals],[Luna 5]]) -> 1,311.95 | I34: =SUM(CorespondențăDirectă[[#Totals],[Luna 6]],MarketingPeInternet[[#Totals],[Luna 6]],MarketingDirect[[#Totals],[Luna 6]]) -> 1,281.94 | J34: =SUM(CorespondențăDirectă[[#Totals],[Luna 7]],MarketingPeInternet[[#Totals],[Luna 7]],MarketingDirect[[#Totals],[Luna 7]]) -> 1,311.90 | K34: =SUM(CorespondențăDirectă[[#Totals],[Luna 8]],MarketingPeInternet[[#Totals],[Luna 8]],MarketingDirect[[#Totals],[Luna 8]]) -> 1,281.84 | L34: =SUM(CorespondențăDirectă[[#Totals],[Luna 9]],MarketingPeInternet[[#Totals],[Luna 9]],MarketingDirect[[#Totals],[Luna 9]]) -> 1,311.80 | M34: =SUM(CorespondențăDirectă[[#Totals],[Luna 10]],MarketingPeInternet[[#Totals],[Luna 10]],MarketingDirect[[#Totals],[Luna 10]]) -> 1,281.80 | N34: =SUM(CorespondențăDirectă[[#Totals],[Luna 11]],MarketingPeInternet[[#Totals],[Luna 11]],MarketingDirect[[#Totals],[Luna 11]]) -> 1,336.80 | O34: =SUM(CorespondențăDirectă[[#Totals],[Luna 12]],MarketingPeInternet[[#Totals],[Luna 12]],MarketingDirect[[#Totals],[Luna 12]]) -> 1,281.80 | Q34: =SUM(Q33,Q27,Q17,Q9) -> 16,431.61
B35: ELEMENTE AGENT/BROKER | C35: Tarif | D35: Luna 1 | E35: Luna 2 | F35: Luna 3 | G35: Luna 4 | H35: Luna 5 | I35: Luna 6 | J35: Luna 7 | K35: Luna 8 | L35: Luna 9 | M35: Luna 10 | N35: Luna 11 | O35: Luna 12
B36: AGENT/BROKER (PROCENT DIN TOTALUL VÂNZĂRILOR) | D36: 10% | E36: 10% | F36: 10% | G36: 10% | H36: 10% | I36: 10% | J36: 10% | K36: 10% | L36: 10% | M36: 10% | N36: 10% | O36: 10%
B37: Comunicare | D37: 50 | E37: 50 | F37: 50 | G37: 50 | H37: 50 | I37: 50 | J37: 50 | K37: 50 | L37: 50 | M37: 50 | N37: 50 | O37: 50 | Q37: =SUM('Buget marketing canal'!$D37:$O37) -> 600.00
B38: Instruire | D38: 250.00 | E38: 250.00 | F38: 250.00 | G38: 250.00 | H38: 250.00 | I38: 250.00 | J38: 250.00 | K38: 250.00 | L38: 250.00 | M38: 250.00 | N38: 250.00 | O38: 250.00 | Q38: =SUM('Buget marketing canal'!$D38:$O38) -> 3,000.00
B39: Promoții | D39: 600.00 | E39: 600.00 | F39: 600.00 | G39: 600.00 | H39: 600.00 | I39: 600.00 | J39: 600.00 | K39: 600.00 | L39: 600.00 | M39: 600.00 | N39: 600.00 | O39: 600.00 | Q39: =SUM('Buget marketing canal'!$D39:$O39) -> 7,200.00
B40: Reduceri | C40: 10.00% | D40: =D3*D36*$C$40 -> 7.50 | E40: 2.00 | F40: 5.00 | G40: 15.00 | H40: 12.00 | I40: 15.00 | J40: 15.00 | K40: 18.00 | L40: 20.00 | M40: 20.00 | N40: 20.00 | O40: 20.00 | Q40: =SUM('Buget marketing canal'!$D40:$O40) -> 169.50
B41: Comision (procent din vânzările agentului) | C41: 10.00% | D41: =D3*D36*$C$41 -> 7.50 | E41: 2.00 | F41: 5.00 | G41: 15.00 | H41: 12.00 | I41: 15.00 | J41: 15.00 | K41: 18.00 | L41: 20.00 | M41: 20.00 | N41: 20.00 | O41: 20.00 | Q41: =SUM('Buget marketing canal'!$D41:$O41) -> 169.50
B42: Total agent/broker (000) lei | D42: =SUM(D37:D41) -> 915.00 | E42: =SUM(E37:E41) -> 904.00 | F42: 910.00 | G42: 930.00 | H42: 924.00 | I42: 930.00 | J42: 930.00 | K42: 936.00 | L42: 940.00 | M42: 940.00 | N42: 940.00 | O42: 940.00 | Q42: =SUM(Q37:Q41) -> 11,139.00
B43: ELEMENTE DE DISTRIBUITORI | C43: Tarif | D43: Luna 1 | E43: Luna 2 | F43: Luna 3 | G43: Luna 4 | H43: Luna 5 | I43: Luna 6 | J43: Luna 7 | K43: Luna 8 | L43: Luna 9 | M43: Luna 10 | N43: Luna 11 | O43: Luna 12
B44: DISTRIBUITORI (PROCENT DIN TOTALUL VÂNZĂRILOR) | D44: 0% | E44: 0% | F44: 0% | G44: 0% | H44: 0% | I44: 15% | J44: 20% | K44: 40% | L44: 40% | M44: 40% | N44: 40% | O44: 40%
B45: Comunicare | D45: 50 | E45: 50 | F45: 50 | G45: 50 | H45: 50 | I45: 50 | J45: 50 | K45: 50 | L45: 50 | M45: 50 | N45: 50 | O45: 50 | Q45: =SUM('Buget marketing canal'!$D45:$O45) -> 600.00
B46: Instruire | D46: 250.00 | E46: 250.00 | F46: 250.00 | G46: 250.00 | H46: 250.00 | I46: 250.00 | J46: 250.00 | K46: 250.00 | L46: 250.00 | M46: 250.00 | N46: 250.00 | O46: 250.00 | Q46: =SUM(Distribuitori[[#This Row],[Luna 1]:[Luna 12]]) -> 3,000.00
B47: Promoții | D47: 600.00 | E47: 600.00 | F47: 600.00 | G47: 600.00 | H47: 600.00 | I47: 600.00 | J47: 600.00 | K47: 600.00 | L47: 600.00 | M47: 600.00 | N47: 600.00 | O47: 600.00 | Q47: =SUM(Distribuitori[[#This Row],[Luna 1]:[Luna 12]]) -> 7,200.00
B48: Comision/reduceri (procent din vânzările distribuitorilor) | C48: 15.00% | D48: =D3*D44*$C$48 -> 0 | E48: 0 | F48: 0 | G48: 0 | H48: 0 | I48: 33.75 | J48: 45 | K48: 108 | L48: 120 | M48: 120 | N48: 120 | O48: 120 | Q48: =SUM(Distribuitori[[#This Row],[Luna 1]:[Luna 12]]) -> 666.75
B49: Total distribuitor (000) lei | D49: =SUM(D45:D48) -> 900.00 | E49: =SUM(E45:E48) -> 900.00 | F49: 900.00 | G49: 900.00 | H49: 900.00 | I49: 933.75 | J49: 945.00 | K49: 1,008.00 | L49: 1,020.00 | M49: 1,020.00 | N49: 1,020.00 | O49: 1,020.00 | Q49: =SUM(Q45:Q48) -> 11,466.75
B50: ELEMENTE DE VÂNZARE CU AMĂNUNTUL | C50: Tarif | D50: Luna 1 | E50: Luna 2 | F50: Luna 3 | G50: Luna 4 | H50: Luna 5 | I50: Luna 6 | J50: Luna 7 | K50: Luna 8 | L50: Luna 9 | M50: Luna 10 | N50: Luna 11 | O50: Luna 12
B51: RETAILER (PROCENT DIN TOTALUL VÂNZĂRILOR) | D51: 0% | E51: 0% | F51: 25% | G51: 60% | H51: 67% | I51: 60% | J51: 60% | K51: 50% | L51: 30% | M51: 30% | N51: 30% | O51: 30%
B52: Comunicare | D52: 50 | E52: 50 | F52: 50 | G52: 50 | H52: 50 | I52: 50 | J52: 50 | K52: 50 | L52: 50 | M52: 50 | N52: 50 | O52: 50
B53: Instruire | D53: 250.00 | E53: 250.00 | F53: 250.00 | G53: 250.00 | H53: 250.00 | I53: 250.00 | J53: 250.00 | K53: 250.00 | L53: 250.00 | M53: 250.00 | N53: 250.00 | O53: 250.00 | Q53: =SUM('Buget marketing canal'!$D52:$O52) -> 600.00
B54: Promoții | D54: 600.00 | E54: 600.00 | F54: 600.00 | G54: 600.00 | H54: 600.00 | I54: 600.00 | J54: 600.00 | K54: 600.00 | L54: 600.00 | M54: 600.00 | N54: 600.00 | O54: 600.00 | Q54: =SUM('Buget marketing canal'!$D53:$O53) -> 3,000.00
B55: Comision/reduceri (procent din vânzarea cu amănuntul) | C55: 10.00% | D55: =D3*D51*$C$55 -> 0 | E55: 0 | F55: 12.5 | G55: 90 | H55: 80.4 | I55: 90 | J55: 90 | K55: 90 | L55: 60 | M55: 60 | N55: 60 | O55: 60 | Q55: =SUM('Buget marketing canal'!$D55:$O55) -> 692.90
B56: Total retailer (000) lei | D56: =SUM(D52:D55) -> 900.00 | E56: =SUM(E52:E55) -> 900.00 | F56: 912.50 | G56: 990.00 | H56: 980.40 | I56: 990.00 | J56: 990.00 | K56: 990.00 | L56: 960.00 | M56: 960.00 | N56: 960.00 | O56: 960.00 | Q56: =SUM(Q53:Q55) -> 4,292.90
B57: ELEMENTE DE ACHIZIȚIE ȘI RETENȚIE PENTRU CLIENȚI (CAR) | C57: Tarif | D57: Luna 1 | E57: Luna 2 | F57: Luna 3 | G57: Luna 4 | H57: Luna 5 | I57: Luna 6 | J57: Luna 7 | K57: Luna 8 | L57: Luna 9 | M57: Luna 10 | N57: Luna 11 | O57: Luna 12
B58: ACHIZIȚIE ȘI RETENȚIE PENTRU CLIENȚI (CAR)
B59: Resurse umane | D59: 50 | E59: 50 | F59: 50 | G59: 50 | H59: 50 | I59: 50 | J59: 50 | K59: 50 | L59: 50 | M59: 50 | N59: 50 | O59: 50 | Q59: =SUM('Buget marketing canal'!$D59:$O59) -> 600.00
B60: Comunicații | D60: 250.00 | E60: 250.00 | F60: 250.00 | G60: 250.00 | H60: 250.00 | I60: 250.00 | J60: 250.00 | K60: 250.00 | L60: 250.00 | M60: 250.00 | N60: 250.00 | O60: 250.00 | Q60: =SUM('Buget marketing canal'!$D60:$O60) -> 3,000.00
B61: Promoții/Cupoane | D61: 600 | E61: 600 | F61: 600 | G61: 600 | H61: 600 | I61: 600 | J61: 600 | K61: 600 | L61: 600 | M61: 600 | N61: 600 | O61: 600 | Q61: =SUM('Buget marketing canal'!$D61:$O61) -> 7,200.00
B62: Total CAR (000) lei | D62: =SUM(D59:D61) -> 900.00 | E62: =SUM(E59:E61) -> 900.00 | F62: 900.00 | G62: 900.00 | H62: 900.00 | I62: 900.00 | J62: 900.00 | K62: 900.00 | L62: 900.00 | M62: 900.00 | N62: 900.00 | O62: 900.00 | Q62: =SUM(Q59:Q61) -> 10,800.00
B63: ALTE ELEMENTE DE CHELTUIELI | C63: Tarif | D63: Luna 1 | E63: Luna 2 | F63: Luna 3 | G63: Luna 4 | H63: Luna 5 | I63: Luna 6 | J63: Luna 7 | K63: Luna 8 | L63: Luna 9 | M63: Luna 10 | N63: Luna 11 | O63: Luna 12
B64: ALTE CHELTUIELI
B65: Călătorie | D65: 50 | E65: 50 | F65: 50 | G65: 50 | H65: 50 | I65: 50 | J65: 50 | K65: 50 | L65: 50 | M65: 50 | N65: 50 | O65: 50 | Q65: =SUM('Buget marketing canal'!$D65:$O65) -> 600.00
B66: Infrastructură (computer, telefon etc.) | D66: 250.00 | E66: 250.00 | F66: 250.00 | G66: 250.00 | H66: 250.00 | I66: 250.00 | J66: 250.00 | K66: 250.00 | L66: 250.00 | M66: 250.00 | N66: 250.00 | O66: 250.00 | Q66: =SUM('Buget marketing canal'!$D66:$O66) -> 3,000.00
B67: Suport canal | D67: 600 | E67: 600 | F67: 600 | G67: 600 | H67: 600 | I67: 600 | J67: 600 | K67: 600 | L67: 600 | M67: 600 | N67: 600 | O67: 600 | Q67: =SUM('Buget marketing canal'!$D67:$O67) -> 7,200.00
B68: Total alte cheltuieli (000) lei | D68: =SUM(D65:D67) -> 900.00 | E68: =SUM(E65:E67) -> 900.00 | F68: 900.00 | G68: 900.00 | H68: 900.00 | I68: 900.00 | J68: 900.00 | K68: 900.00 | L68: 900.00 | M68: 900.00 | N68: 900.00 | O68: 900.00 | Q68: =SUM(Q65:Q67) -> 10,800.00
B70: BUGET TOTAL DE MARKETING: | D70: =SUM(D34,AgentȘiBroker[[#Totals],[Luna 1]],Distribuitori[[#Totals],[Luna 1]],Retailer[[#Totals],[Luna 1]],MAȘINĂ[[#Totals],[Luna 1]],AlteCheltuieli[[#Totals],[Luna 1]]) -> 6,354.00 | E70: =SUM(AlteCheltuieli[[#Totals],[Luna 2]],MAȘINĂ[[#Totals],[Luna 2]],Retailer[[#Totals],[Luna 2]],Distribuitori[[#Totals],[Luna 2]],AgentȘiBroker[[#Totals],[Luna 2]],E34) -> 5,785.85 | F70: =SUM(AlteCheltuieli[[#Totals],[Luna 3]],MAȘINĂ[[#Totals],[Luna 3]],Retailer[[#Totals],[Luna 3]],Distribuitori[[#Totals],[Luna 3]],AgentȘiBroker[[#Totals],[Luna 3]],F34) -> 5,834.44 | G70: =SUM(AlteCheltuieli[[#Totals],[Luna 4]],MAȘINĂ[[#Totals],[Luna 4]],Retailer[[#Totals],[Luna 4]],Distribuitori[[#Totals],[Luna 4]],AgentȘiBroker[[#Totals],[Luna 4]],G34) -> 5,902.05 | H70: =SUM(AlteCheltuieli[[#Totals],[Luna 5]],MAȘINĂ[[#Totals],[Luna 5]],Retailer[[#Totals],[Luna 5]],Distribuitori[[#Totals],[Luna 5]],AgentȘiBroker[[#Totals],[Luna 5]],H34) -> 5,916.35 | I70: =SUM(AlteCheltuieli[[#Totals],[Luna 6]],MAȘINĂ[[#Totals],[Luna 6]],Retailer[[#Totals],[Luna 6]],Distribuitori[[#Totals],[Luna 6]],AgentȘiBroker[[#Totals],[Luna 6]],I34) -> 5,935.69 | J70: =SUM(AlteCheltuieli[[#Totals],[Luna 7]],MAȘINĂ[[#Totals],[Luna 7]],Retailer[[#Totals],[Luna 7]],Distribuitori[[#Totals],[Luna 7]],AgentȘiBroker[[#Totals],[Luna 7]],J34) -> 5,976.90 | K70: =SUM(AlteCheltuieli[[#Totals],[Luna 8]],MAȘINĂ[[#Totals],[Luna 8]],Retailer[[#Totals],[Luna 8]],Distribuitori[[#Totals],[Luna 8]],AgentȘiBroker[[#Totals],[Luna 8]],K34) -> 6,015.84 | L70: =SUM(AlteCheltuieli[[#Totals],[Luna 9]],MAȘINĂ[[#Totals],[Luna 9]],Retailer[[#Totals],[Luna 9]],Distribuitori[[#Totals],[Luna 9]],AgentȘiBroker[[#Totals],[Luna 9]],L34) -> 6,031.80 | M70: =SUM(AlteCheltuieli[[#Totals],[Luna 10]],MAȘINĂ[[#Totals],[Luna 10]],Retailer[[#Totals],[Luna 10]],Distribuitori[[#Totals],[Luna 10]],AgentȘiBroker[[#Totals],[Luna 10]],M34) -> 6,001.80 | N70: =SUM(AlteCheltuieli[[#Totals],[Luna 11]],MAȘINĂ[[#Totals],[Luna 11]],Retailer[[#Totals],[Luna 11]],Distribuitori[[#Totals],[Luna 11]],AgentȘiBroker[[#Totals],[Luna 11]],N34) -> 6,056.80 | O70: =SUM(AlteCheltuieli[[#Totals],[Luna 12]],MAȘINĂ[[#Totals],[Luna 12]],Retailer[[#Totals],[Luna 12]],Distribuitori[[#Totals],[Luna 12]],AgentȘiBroker[[#Totals],[Luna 12]],O34) -> 6,001.80 | Q70: =Q72 -> 0.00
